fUSD/lending_fUSD_20260527
["ID","MTS","AMOUNT","RATE_DAILY","PERIOD"]
[423113954,1779859842000,-1007.86229903,0.00038899,15]
[423113958,1779859842000,-500.0,0.00038899,2]
[423113973,1779859842000,-500.0,0.00038899,2]
[423113975,1779859842000,-1007.86229903,0.00038899,15]
[423113965,1779859842000,-500.0,0.00038899,2]
[423113963,1779859842000,-1007.86229903,0.00038899,15]
[423113961,1779859842000,-500.0,0.00038899,2]
[423114022,1779859842000,-1007.86229903,0.00038899,15]
[423113967,1779859842000,-1007.86229903,0.00038899,15]
[423113969,1779859842000,-500.0,0.00038899,2]
[423113977,1779859842000,-1007.86229903,0.00038899,15]
[423113979,1779859842000,-1007.86229903,0.00038899,15]
[423113981,1779859842000,-1007.86229903,0.00038899,15]
[423113983,1779859842000,-1007.86229903,0.00038899,15]
[423113985,1779859842000,-1007.86229903,0.00038899,15]
[423113971,1779859842000,-1007.86229903,0.00038899,15]
[423113987,1779859842000,-1007.86229903,0.00038899,15]
[423114077,1779859842000,-8858.2187317,0.00039037,2]
[423114012,1779859842000,-1007.86229903,0.00038899,15]
[423114014,1779859842000,-1007.86229903,0.00038899,15]
[423114010,1779859842000,-1007.86229903,0.00038899,15]
[423114006,1779859842000,-1007.86229903,0.00038899,15]
[423113997,1779859842000,-1007.86229903,0.00038899,15]
[423114000,1779859842000,-1007.86229903,0.00038899,15]
[423114008,1779859842000,-1007.86229903,0.00038899,15]
[423114004,1779859842000,-1007.86229903,0.00038899,15]
[423113996,1779859842000,-1007.86229903,0.00038899,15]
[423114002,1779859842000,-1007.86229903,0.00038899,15]
[423113994,1779859842000,-1007.86229903,0.00038899,15]
[423113991,1779859842000,-1007.86229903,0.00038899,15]
[423113989,1779859842000,-1007.86229903,0.00038899,15]
[423114111,1779859843000,-4389.2652235,0.00039214,120]
[423114116,1779859843000,-165.36373874,0.00039222,2]
[423114105,1779859843000,-6045.48923434,0.0003915,2]
[423114103,1779859843000,-535.13249543,0.00039142,120]
[423114101,1779859843000,-250.0,0.00039134,30]
[423114099,1779859843000,-5000.0,0.00039132,120]
[423114114,1779859843000,-6045.48923434,0.00039222,2]
[423114096,1779859843000,-208.91080884,0.00039131,11]
[423114086,1779859843000,-4389.2652235,0.00039095,120]
[423114107,1779859843000,-6045.48923434,0.00039186,2]
[423114092,1779859843000,-209.585131,0.000391,30]
[423114094,1779859843000,-6045.48923434,0.00039114,2]
[423114090,1779859843000,-237.582248,0.000391,30]
[423114088,1779859843000,-8858.2187317,0.00039099,2]
[423114084,1779859843000,-6045.48923434,0.00039078,2]
[423114119,1779859843000,-500.0,0.00039231,10]
[423114109,1779859843000,-321.92,0.000392,120]
[423114117,1779859843000,-500.0,0.00039231,10]
[423114155,1779859843000,-1670.73,0.0003537,10]
[423114121,1779859843000,-153.38,0.00039231,120]
[423114124,1779859843000,-250.0,0.00039232,30]
[423114165,1779859843000,-318.46,0.00039129,2]
[423114160,1779859843000,-4099.47777623,0.00039129,2]
[423114158,1779859843000,-300.0,0.0003538,2]
[423114157,1779859843000,-356.79222377,0.0003538,2]
[423114167,1779859843000,-934.58350568,0.00039129,2]
[423114142,1779859843000,-62663.35524545,0.00039322,28]
[423114140,1779859843000,-192.51812992,0.00039322,120]
[423114162,1779859843000,-3216.0852874,0.00039129,2]
[423114144,1779859843000,-219736.3627086,0.00039322,30]
[423114137,1779859843000,-165.36373874,0.00039312,2]
[423114134,1779859843000,-260.2,0.00039269,60]
[423114136,1779859843000,-165.36373874,0.00039312,2]
[423114132,1779859843000,-228.0,0.00039253,5]
[423114130,1779859843000,-278.4222,0.00039232,2]
[423114126,1779859843000,-1500358.1874,0.00039232,2]
[423114128,1779859843000,-2000.0,0.00039232,2]
[423114138,1779859843000,-150.0,0.00039315,30]
[423114458,1779859887000,1854.209057,7.945e-05,2]
[423114456,1779859887000,-280.62843452,0.00016743,2]
[423114457,1779859887000,-72.42157548,0.0003538,2]
[423114460,1779860053000,2000.0,0.00025,120]
[423114461,1779860104000,1083.76391583,0.00028,120]
[423114462,1779860154000,6000.0,0.00028,120]
[423114468,1779860721000,276.95,9.61e-05,2]
[423114470,1779860813000,-136.56423083,0.000126,2]
[423114469,1779860813000,-150.0,0.00012222,2]
[423114471,1779860961000,-151.0,0.000118,2]
[423114473,1779860961000,-304.07106589,0.0001195,2]
[423114472,1779860961000,-151.0,0.000119,2]
[423114474,1779860961000,-151.0,0.00012,2]
[423114475,1779860961000,-151.0,0.000121,2]
[423114480,1779860961000,-14.43576917,0.000126,2]
[423114477,1779860961000,-151.0,0.000123,2]
[423114479,1779860961000,-200.0,0.00012568,2]
[423114478,1779860961000,-165.376971,0.000124,2]
[423114481,1779860961000,-1570.13197594,0.00012953,2]
[423114476,1779860961000,-151.0,0.000122,2]
[423114482,1779861018000,177.99,0.00025936,120]
[423114519,1779861032000,-470.0,0.00015558,2]
[423114498,1779861032000,-10674.65254761,0.00012953,2]
[423114500,1779861032000,-165.37704918,0.0001299,2]
[423114502,1779861032000,-165.38965849,0.000132,2]
[423114515,1779861032000,-250.0,0.00014247,2]
[423114516,1779861032000,-11165.0,0.00015,2]
[423114510,1779861032000,-390.12441465,0.00014247,2]
[423114512,1779861032000,-1289.87558535,0.00014247,2]
[423114508,1779861032000,-420.0,0.00014205,2]
[423114501,1779861032000,-250.0,0.0001309,2]
[423114496,1779861032000,-300.0,0.00012952,2]
[423114506,1779861032000,-250.0,0.00014,2]
[423114494,1779861032000,-1200.0,0.00012952,2]
[423114492,1779861032000,-317.0,0.00012952,2]
[423114517,1779861032000,-406.0,0.00015496,2]
[423114504,1779861032000,-250.0,0.0001386,2]
[423114518,1779861032000,-175.0,0.00015527,2]
[423114549,1779861032000,-462.19315992,0.00018184,2]
[423114520,1779861032000,-570.0,0.00015672,2]
[423114550,1779861032000,-3307.16045395,0.00018184,2]
[423114551,1779861032000,-308.93914437,0.00018184,2]
[423114547,1779861032000,-500.91157275,0.00018184,2]
[423114525,1779861032000,-3826.69449487,0.00016848,2]
[423114540,1779861032000,-3636.70979748,0.00018184,2]
[423114546,1779861032000,-1488.70773973,0.00018184,2]
[423114544,1779861032000,-824.12062369,0.00018184,2]
[423114548,1779861032000,-699.49483532,0.00018184,2]
[423114542,1779861032000,-637.20601894,0.00018184,2]
[423114524,1779861032000,-711.0,0.00016409,2]
[423114523,1779861032000,-300.0,0.00016,2]
[423114527,1779861032000,-177.99,0.0001729,2]
[423114531,1779861032000,-5120.83351598,0.00018184,2]
[423114529,1779861032000,-19324.48503932,0.00018184,2]
[423114522,1779861032000,-165.37704916,0.00015994,2]
[423114521,1779861032000,-213.11728104,0.00015784,2]
[423114534,1779861032000,-6608.00546534,0.00018184,2]
[423114559,1779861038000,-18644.18065624,0.00018184,2]
[423114562,1779861038000,-903.93718342,0.00018184,2]
[423114561,1779861038000,-506.32002854,0.00018184,2]
[423114560,1779861038000,-2583.5208718,0.00018184,2]
[423114582,1779861040000,-20394.54655676,0.00019173,2]
[423114576,1779861040000,-500.0,0.00018551,2]
[423114574,1779861040000,-12366.83389321,0.00018184,2]
[423114573,1779861040000,-1956.82,0.00018184,2]
[423114575,1779861040000,-166.68,0.00018331,2]
[423114579,1779861040000,-21277.44,0.00019065,2]
[423114577,1779861040000,-165.37704916,0.00018997,2]
[423114581,1779861040000,-2141.1,0.00019168,2]
[423114580,1779861040000,-182.61,0.00019097,2]
[423114583,1779861040000,-1610.03,0.00019183,2]
[423114584,1779861040000,-374.21,0.00019185,2]
[423114585,1779861040000,-1000.0,0.0001922,2]
[423114589,1779861040000,-500.0,0.00020849,2]
[423114586,1779861040000,-2141.1,0.00020177,2]
[423114578,1779861040000,-405.0,0.00019064,2]
[423114588,1779861040000,-177.1,0.00020596,2]
[423114587,1779861040000,-955.07,0.00020596,2]
[423114610,1779861040000,-500.0,0.00021515,2]
[423114594,1779861040000,-441.88172007,0.00021515,2]
[423114593,1779861040000,-165.42139901,0.00021515,2]
[423114599,1779861040000,-500.0,0.00021515,2]
[423114597,1779861040000,-1198.44946202,0.00021515,2]
[423114592,1779861040000,-2141.1,0.00021185,2]
[423114596,1779861040000,-500.0,0.00021515,2]
[423114605,1779861040000,-500.0,0.00021515,2]
[423114603,1779861040000,-500.0,0.00021515,2]
[423114608,1779861040000,-1198.44946202,0.00021515,2]
[423114591,1779861040000,-177.1,0.00021111,2]
[423114601,1779861040000,-1198.44946202,0.00021515,2]
[423114590,1779861040000,-1897.74,0.00021086,2]
[423114658,1779861041000,-1198.44946202,0.00021515,2]
[423114655,1779861041000,-1198.44946202,0.00021515,2]
[423114654,1779861041000,-1198.44946202,0.00021515,2]
[423114652,1779861041000,-1198.44946202,0.00021515,2]
[423114653,1779861041000,-1198.44946202,0.00021515,2]
[423114648,1779861041000,-1198.44946202,0.00021515,2]
[423114649,1779861041000,-1198.44946202,0.00021515,2]
[423114645,1779861041000,-1198.44946202,0.00021515,2]
[423114644,1779861041000,-1198.44946202,0.00021515,2]
[423114659,1779861041000,-1198.44946202,0.00021515,2]
[423114650,1779861041000,-1198.44946202,0.00021515,2]
[423114647,1779861041000,-1198.44946202,0.00021515,2]
[423114662,1779861041000,-1198.44946202,0.00021515,2]
[423114664,1779861041000,-17994.11,0.00021516,2]
[423114656,1779861041000,-1198.44946202,0.00021515,2]
[423114660,1779861041000,-1198.44946202,0.00021515,2]
[423114661,1779861041000,-1198.44946202,0.00021515,2]
[423114663,1779861041000,-1198.44946202,0.00021515,2]
[423114666,1779861041000,-7475.37,0.0002165,2]
[423114669,1779861041000,-2141.1,0.00022194,2]
[423114665,1779861041000,-177.1,0.00021625,2]
[423114673,1779861041000,-208.97895572,0.00022751,2]
[423114671,1779861041000,-8235.23824767,0.00022441,2]
[423114667,1779861041000,-200.0,0.00021891,2]
[423114670,1779861041000,-500.0,0.00022194,2]
[423114672,1779861041000,-177.1,0.00022655,2]
[423114646,1779861041000,-1198.44946202,0.00021515,2]
[423114657,1779861041000,-1198.44946202,0.00021515,2]
[423114651,1779861041000,-1198.44946202,0.00021515,2]
[423114618,1779861041000,-500.0,0.00021515,2]
[423114643,1779861041000,-1198.44946202,0.00021515,2]
[423114668,1779861041000,-177.1,0.0002214,2]
[423114612,1779861041000,-1198.44946202,0.00021515,2]
[423114622,1779861041000,-500.0,0.00021515,2]
[423114623,1779861041000,-1198.44946202,0.00021515,2]
[423114617,1779861041000,-1198.44946202,0.00021515,2]
[423114626,1779861041000,-500.0,0.00021515,2]
[423114624,1779861041000,-500.0,0.00021515,2]
[423114614,1779861041000,-367.38666922,0.00021515,2]
[423114615,1779861041000,-1198.44946202,0.00021515,2]
[423114625,1779861041000,-1198.44946202,0.00021515,2]
[423114616,1779861041000,-500.0,0.00021515,2]
[423114621,1779861041000,-1198.44946202,0.00021515,2]
[423114619,1779861041000,-1198.44946202,0.00021515,2]
[423114641,1779861041000,-1198.44946202,0.00021515,2]
[423114620,1779861041000,-500.0,0.00021515,2]
[423114638,1779861041000,-1198.44946202,0.00021515,2]
[423114639,1779861041000,-1198.44946202,0.00021515,2]
[423114627,1779861041000,-1198.44946202,0.00021515,2]
[423114633,1779861041000,-1198.44946202,0.00021515,2]
[423114630,1779861041000,-1198.44946202,0.00021515,2]
[423114637,1779861041000,-1198.44946202,0.00021515,2]
[423114635,1779861041000,-1198.44946202,0.00021515,2]
[423114631,1779861041000,-1198.44946202,0.00021515,2]
[423114634,1779861041000,-1198.44946202,0.00021515,2]
[423114632,1779861041000,-1198.44946202,0.00021515,2]
[423114636,1779861041000,-1198.44946202,0.00021515,2]
[423114640,1779861041000,-1198.44946202,0.00021515,2]
[423114642,1779861041000,-1198.44946202,0.00021515,2]
[423114628,1779861041000,-1198.44946202,0.00021515,2]
[423114674,1779861041000,-160.0,0.00022751,2]
[423114629,1779861041000,-1198.44946202,0.00021515,2]
[423114675,1779861041000,-186.03,0.00022944,2]
[423114706,1779861041000,-500.79177348,0.000259,2]
[423114702,1779861041000,-480.23168686,0.000256,2]
[423114704,1779861041000,-955.07,0.00025745,2]
[423114713,1779861041000,-2141.1,0.00026229,2]
[423114714,1779861041000,-1610.03,0.00026856,2]
[423114712,1779861041000,-382.42122115,0.000261,2]
[423114724,1779861041000,-150.0,0.00029,2]
[423114723,1779861041000,-955.07,0.00028319,120]
[423114715,1779861041000,-167.99,0.00026906,2]
[423114717,1779861041000,-8235.23824764,0.00027239,2]
[423114736,1779861041000,-8235.23824764,0.00032036,2]
[423114719,1779861041000,-8019.84868503,0.00027902,2]
[423114718,1779861041000,-2191.46,0.00027397,10]
[423114708,1779861041000,-382.42122115,0.000259,2]
[423114721,1779861041000,-317.39,0.000282,30]
[423114716,1779861041000,-2141.1,0.00027238,2]
[423114720,1779861041000,-232.0,0.000281,7]
[423114726,1779861041000,-2141.1,0.00029256,2]
[423114728,1779861041000,-8019.84868503,0.0002979,2]
[423114727,1779861041000,-8235.23824764,0.00029638,2]
[423114734,1779861041000,-317.39,0.000314,60]
[423114725,1779861041000,-232.0,0.00029,7]
[423114731,1779861041000,-2141.1,0.00030265,2]
[423114733,1779861041000,-2141.1,0.00031274,2]
[423114729,1779861041000,-518.0,0.00030075,7]
[423114735,1779861041000,-8019.84868503,0.00031679,2]
[423114732,1779861041000,-955.07,0.00030894,120]
[423114686,1779861041000,-500.0,0.00024799,2]
[423114722,1779861041000,-2141.1,0.00028247,2]
[423114705,1779861041000,-7096.68,0.00025786,2]
[423114730,1779861041000,-341.36,0.000302,2]
[423114703,1779861041000,-382.42122115,0.000256,2]
[423114710,1779861041000,-500.79177348,0.000261,2]
[423114685,1779861041000,-290.658797,0.000245,2]
[423114676,1779861041000,-955.07,0.0002317,2]
[423114678,1779861041000,-500.0,0.000239,2]
[423114682,1779861041000,-2141.1,0.00024212,2]
[423114684,1779861041000,-156.508582,0.000244,2]
[423114677,1779861041000,-2141.1,0.00023203,2]
[423114683,1779861041000,-418.2512123,0.00024246,2]
[423114679,1779861041000,-150.0,0.00023976,2]
[423114681,1779861041000,-5000.0,0.00024178,2]
[423114687,1779861041000,-500.0,0.00024799,2]
[423114688,1779861041000,-500.0,0.00024799,2]
[423114689,1779861041000,-500.0,0.00024799,2]
[423114690,1779861041000,-258.93,0.00024799,2]
[423114680,1779861041000,-7096.68,0.00024174,2]
[423114699,1779861041000,-382.42122115,0.000254,2]
[423114698,1779861041000,-480.23168686,0.000254,2]
[423114707,1779861041000,-480.23168686,0.000259,2]
[423114700,1779861041000,-232.0,0.000255,7]
[423114701,1779861041000,-500.79177348,0.000256,2]
[423114693,1779861041000,-500.79177348,0.000251,2]
[423114711,1779861041000,-480.23168686,0.000261,2]
[423114696,1779861041000,-2141.1,0.00025221,2]
[423114695,1779861041000,-382.42122115,0.000251,2]
[423114691,1779861041000,-8235.23824764,0.0002484,2]
[423114697,1779861041000,-500.79177348,0.000254,2]
[423114694,1779861041000,-480.23168686,0.000251,2]
[423114692,1779861041000,-518.0,0.00025082,2]
[423114709,1779861041000,-8019.84868503,0.00026013,2]
[423114769,1779861042000,-300.0,0.00035391,2]
[423114774,1779861042000,-300.0,0.00035391,2]
[423114768,1779861042000,-300.0,0.00035391,2]
[423114770,1779861042000,-605.31118564,0.00035391,2]
[423114771,1779861042000,-300.0,0.00035391,2]
[423114772,1779861042000,-399.15379367,0.00035391,2]
[423114773,1779861042000,-300.0,0.00035391,2]
[423114775,1779861042000,-528.48327171,0.00035391,2]
[423114777,1779861042000,-894.65434383,0.00035391,2]
[423114776,1779861042000,-1068.40163352,0.00035391,2]
[423114767,1779861042000,-493.38669858,0.00035391,2]
[423114786,1779861042000,-519.1090543,0.00035391,2]
[423114781,1779861042000,-300.0,0.00035391,2]
[423114782,1779861042000,-300.99795142,0.00035391,2]
[423114785,1779861042000,-300.0,0.00035391,2]
[423114778,1779861042000,-727.07827244,0.00035391,2]
[423114780,1779861042000,-300.0,0.00035391,2]
[423114783,1779861042000,-300.0,0.00035391,2]
[423114787,1779861042000,-300.0,0.00035391,2]
[423114784,1779861042000,-300.0,0.00035391,2]
[423114788,1779861042000,-300.0,0.00035391,2]
[423114790,1779861042000,-344.45437934,0.00035391,2]
[423114759,1779861042000,-2141.1,0.00035309,2]
[423114789,1779861042000,-1263.96825586,0.00035391,2]
[423114779,1779861042000,-302.21937029,0.00035391,2]
[423114762,1779861042000,-499.37863486,0.00035391,2]
[423114750,1779861042000,-1310.723,0.0003246,2]
[423114761,1779861042000,-300.0,0.00035391,2]
[423114800,1779861042000,-300.0,0.00035391,2]
[423114738,1779861042000,-2141.1,0.00032282,2]
[423114740,1779861042000,-500.0,0.00032459,2]
[423114742,1779861042000,-548.12426221,0.00032459,2]
[423114739,1779861042000,-318.16858788,0.00032459,2]
[423114737,1779861042000,-981.225,0.00032253,32]
[423114741,1779861042000,-500.0,0.00032459,2]
[423114745,1779861042000,-500.0,0.00032459,2]
[423114744,1779861042000,-555.91536596,0.00032459,2]
[423114747,1779861042000,-500.0,0.00032459,2]
[423114746,1779861042000,-504.82067698,0.00032459,2]
[423114751,1779861042000,-317.39,0.000329,120]
[423114752,1779861042000,-2141.1,0.00033291,2]
[423114748,1779861042000,-500.0,0.00032459,2]
[423114753,1779861042000,-8019.84868503,0.00033567,2]
[423114749,1779861042000,-1356.0,0.0003246,2]
[423114754,1779861042000,-317.39,0.000338,20]
[423114756,1779861042000,-2141.1,0.000343,2]
[423114755,1779861042000,-150.99,0.00033844,2]
[423114764,1779861042000,-300.0,0.00035391,2]
[423114765,1779861042000,-300.0,0.00035391,2]
[423114757,1779861042000,-150.0,0.00035,4]
[423114766,1779861042000,-300.0,0.00035391,2]
[423114758,1779861042000,-518.0,0.00035067,12]
[423114763,1779861042000,-300.0,0.00035391,2]
[423114760,1779861042000,-227.57842452,0.00035391,2]
[423114795,1779861042000,-865.6208675,0.00035391,2]
[423114743,1779861042000,-500.0,0.00032459,2]
[423114791,1779861042000,-527.62572404,0.00035391,2]
[423114818,1779861042000,-300.0,0.00035391,2]
[423114822,1779861042000,-493.38669858,0.00035391,2]
[423114820,1779861042000,-479.60716553,0.00035391,2]
[423114827,1779861042000,-300.0,0.00035391,2]
[423114829,1779861042000,-528.48327171,0.00035391,2]
[423114839,1779861042000,-300.0,0.00035391,2]
[423114830,1779861042000,-1068.40163352,0.00035391,2]
[423114828,1779861042000,-300.0,0.00035391,2]
[423114831,1779861042000,-894.65434383,0.00035391,2]
[423114837,1779861042000,-300.0,0.00035391,2]
[423114838,1779861042000,-321.2551417,0.00035391,2]
[423114833,1779861042000,-727.07827244,0.00035391,2]
[423114834,1779861042000,-302.21937029,0.00035391,2]
[423114835,1779861042000,-300.0,0.00035391,2]
[423114832,1779861042000,-300.0,0.00035391,2]
[423114836,1779861042000,-300.99795142,0.00035391,2]
[423114840,1779861042000,-300.0,0.00035391,2]
[423114843,1779861042000,-527.62572404,0.00035391,2]
[423114842,1779861042000,-344.45437934,0.00035391,2]
[423114844,1779861042000,-300.0,0.00035391,2]
[423114845,1779861042000,-463.6799933,0.00035391,2]
[423114846,1779861042000,-300.0,0.00035391,2]
[423114841,1779861042000,-1263.96825586,0.00035391,2]
[423114848,1779861042000,-865.6208675,0.00035391,2]
[423114847,1779861042000,-300.84082029,0.00035391,2]
[423114825,1779861042000,-605.31118564,0.00035391,2]
[423114819,1779861042000,-300.0,0.00035391,2]
[423114849,1779861042000,-950.32029804,0.00035391,2]
[423114821,1779861042000,-300.0,0.00035391,2]
[423114823,1779861042000,-300.0,0.00035391,2]
[423114794,1779861042000,-300.0,0.00035391,2]
[423114797,1779861042000,-300.09384644,0.00035391,2]
[423114793,1779861042000,-300.0,0.00035391,2]
[423114796,1779861042000,-950.32029804,0.00035391,2]
[423114799,1779861042000,-310.02493426,0.00035391,2]
[423114798,1779861042000,-1148.83589152,0.00035391,2]
[423114802,1779861042000,-594.79850986,0.00035391,2]
[423114813,1779861042000,-300.0,0.00035391,2]
[423114812,1779861042000,-310.28230408,0.00035391,2]
[423114803,1779861042000,-300.0,0.00035391,2]
[423114805,1779861042000,-300.0,0.00035391,2]
[423114806,1779861042000,-578.28315025,0.00035391,2]
[423114792,1779861042000,-300.0,0.00035391,2]
[423114801,1779861042000,-300.0,0.00035391,2]
[423114804,1779861042000,-464.48677942,0.00035391,2]
[423114826,1779861042000,-300.0,0.00035391,2]
[423114815,1779861042000,-300.0,0.00035391,2]
[423114824,1779861042000,-300.0,0.00035391,2]
[423114816,1779861042000,-300.0,0.00035391,2]
[423114817,1779861042000,-1096.2926835,0.00035391,2]
[423114811,1779861042000,-484.76763572,0.00035391,2]
[423114808,1779861042000,-300.0,0.00035391,2]
[423114810,1779861042000,-300.0,0.00035391,2]
[423114809,1779861042000,-300.0,0.00035391,2]
[423114807,1779861042000,-452.52893397,0.00035391,2]
[423114814,1779861042000,-300.0,0.00035391,2]
[423114886,1779861043000,-79245.0,0.000376,30]
[423114895,1779861043000,-208.91080884,0.00038333,10]
[423114899,1779861043000,-228.92016649,0.00038356,2]
[423114888,1779861043000,-834.94538248,0.00037634,2]
[423114878,1779861043000,-812.695,0.0003546,2]
[423114884,1779861043000,-8019.84868503,0.00037344,2]
[423114880,1779861043000,-2141.1,0.00036318,2]
[423114881,1779861043000,-79245.0,0.000364,30]
[423114902,1779861043000,-633.44315941,0.00038719,120]
[423114882,1779861043000,-2141.1,0.00037326,2]
[423114898,1779861043000,-2141.1,0.00038335,2]
[423114893,1779861043000,-208.91080884,0.00038333,10]
[423114901,1779861043000,-1269.59,0.000386,90]
[423114892,1779861043000,-208.91080884,0.00038333,10]
[423114900,1779861043000,-154.55,0.000384,60]
[423114891,1779861043000,-208.91080884,0.00038333,10]
[423114894,1779861043000,-208.91080884,0.00038333,10]
[423114897,1779861043000,-208.91080884,0.00038333,10]
[423114904,1779861043000,-79245.0,0.000388,30]
[423114903,1779861043000,-154.55,0.0003874,86]
[423114905,1779861043000,-3435.00000197,0.00038827,120]
[423114907,1779861043000,-538.43157113,0.0003893,7]
[423114906,1779861043000,-2000.0,0.00038897,2]
[423114909,1779861043000,-535.13249543,0.00038949,120]
[423114896,1779861043000,-208.91080884,0.00038333,10]
[423114889,1779861043000,-1000.0,0.00038,30]
[423114866,1779861043000,-310.28230408,0.00035391,2]
[423114879,1779861043000,-834.94538248,0.00036034,2]
[423114908,1779861043000,-1116.61267902,0.0003893,2]
[423114851,1779861043000,-1148.83589152,0.00035391,2]
[423114850,1779861043000,-300.09384644,0.00035391,2]
[423114853,1779861043000,-300.0,0.00035391,2]
[423114863,1779861043000,-300.0,0.00035391,2]
[423114854,1779861043000,-594.79850986,0.00035391,2]
[423114852,1779861043000,-310.02493426,0.00035391,2]
[423114855,1779861043000,-300.0,0.00035391,2]
[423114856,1779861043000,-464.48677942,0.00035391,2]
[423114857,1779861043000,-300.0,0.00035391,2]
[423114860,1779861043000,-300.0,0.00035391,2]
[423114861,1779861043000,-300.0,0.00035391,2]
[423114862,1779861043000,-300.0,0.00035391,2]
[423114858,1779861043000,-578.28315025,0.00035391,2]
[423114859,1779861043000,-452.52893397,0.00035391,2]
[423114868,1779861043000,-300.7543397,0.00035391,2]
[423114877,1779861043000,-8019.84868503,0.00035456,2]
[423114874,1779861043000,-300.0,0.00035391,2]
[423114876,1779861043000,-300.0,0.00035391,2]
[423114867,1779861043000,-300.0,0.00035391,2]
[423114872,1779861043000,-1096.2926835,0.00035391,2]
[423114873,1779861043000,-300.0,0.00035391,2]
[423114875,1779861043000,-300.0,0.00035391,2]
[423114869,1779861043000,-300.0,0.00035391,2]
[423114871,1779861043000,-300.0,0.00035391,2]
[423114890,1779861043000,-1000.0,0.00038,30]
[423114864,1779861043000,-484.76763572,0.00035391,2]
[423114912,1779861043000,-1000.0,0.00039,30]
[423114911,1779861043000,-190.7101456,0.00039,5]
[423114935,1779861043000,-199.45897,0.00039222,30]
[423114944,1779861043000,-255.704249,0.00039222,30]
[423114942,1779861043000,-151.0,0.00039222,30]
[423114940,1779861043000,-8794.79205,0.00039222,30]
[423114946,1779861043000,-8794.79205,0.00039222,30]
[423114955,1779861043000,-151.0,0.00039222,30]
[423114956,1779861043000,-151.0,0.00039222,30]
[423114953,1779861043000,-151.0,0.00039222,30]
[423114949,1779861043000,-8794.79205,0.00039222,30]
[423114947,1779861043000,-255.704249,0.00039222,30]
[423114948,1779861043000,-170.583884,0.00039222,30]
[423114950,1779861043000,-255.704249,0.00039222,30]
[423114954,1779861043000,-151.0,0.00039222,30]
[423114951,1779861043000,-170.583884,0.00039222,30]
[423114958,1779861043000,-151.0,0.00039222,30]
[423114963,1779861043000,-151.0,0.00039222,30]
[423114966,1779861043000,-342.789926,0.00039222,30]
[423114957,1779861043000,-151.0,0.00039222,30]
[423114964,1779861043000,-151.0,0.00039222,30]
[423114959,1779861043000,-151.0,0.00039222,30]
[423114965,1779861043000,-151.0,0.00039222,30]
[423114962,1779861043000,-151.0,0.00039222,30]
[423114960,1779861043000,-151.0,0.00039222,30]
[423114961,1779861043000,-151.0,0.00039222,30]
[423114910,1779861043000,-167.19015429,0.00038998,2]
[423114937,1779861043000,-308.830093,0.00039222,30]
[423114938,1779861043000,-151.0,0.00039222,30]
[423114952,1779861043000,-170.583884,0.00039222,30]
[423114943,1779861043000,-8794.79205,0.00039222,30]
[423114939,1779861043000,-199.45897,0.00039222,30]
[423114914,1779861043000,-2165.85409505,0.00039,5]
[423114916,1779861043000,-535.13249543,0.00039023,120]
[423114920,1779861043000,-250.0,0.00039136,30]
[423114919,1779861043000,-250.0,0.00039136,30]
[423114918,1779861043000,-154.55,0.0003908,105]
[423114921,1779861043000,-642.27,0.000392,120]
[423114917,1779861043000,-519.0,0.00039032,30]
[423114915,1779861043000,-434.0857,0.00039,120]
[423114923,1779861043000,-165.36373874,0.00039212,2]
[423114922,1779861043000,-535.13249543,0.00039201,120]
[423114928,1779861043000,-1460957.742,0.00039222,2]
[423114929,1779861043000,-278.4222,0.00039222,2]
[423114913,1779861043000,-1000.0,0.00039,30]
[423114934,1779861043000,-308.830093,0.00039222,30]
[423114927,1779861043000,-408.6925,0.00039222,30]
[423114930,1779861043000,-308.830093,0.00039222,30]